bitfinex-derivatives/quotes_BTCF0:USTF0_20250514
["timestamp","ask_amount","ask_price","bid_price","bid_amount"]
[1747218780585,1.79130022,103910.0,103900.0,5.94988219]
[1747218780787,1.96130022,103910.0,103900.0,5.94988219]
[1747218781079,2.03130022,103910.0,103900.0,5.94988219]
[1747218781291,1.67130022,103910.0,103900.0,5.94988219]
[1747218782081,1.98130022,103910.0,103900.0,5.94988219]
[1747218783294,1.76130022,103910.0,103900.0,5.94988219]
[1747218783492,2.03130022,103910.0,103900.0,5.94988219]
[1747218783793,2.49619155,103910.0,103900.0,2.29737659]
[1747218783995,2.37754022,103910.0,103900.0,1.85256769]
[1747218784193,2.28489654,103910.0,103900.0,1.70981279]
[1747218784385,3.49550787,103910.0,103900.0,1.57469049]
[1747218784580,3.37685654,103910.0,103900.0,1.39807149]
[1747218784785,3.49550787,103910.0,103900.0,1.25065749]
[1747218784986,3.37685654,103910.0,103900.0,1.01264869]
[1747218785995,3.12685654,103910.0,103900.0,1.01264869]
[1747218786184,3.33685654,103910.0,103900.0,1.01264869]
[1747218787184,2.87921654,103910.0,103900.0,1.01264869]
[1747218787391,2.44316521,103910.0,103900.0,1.01264869]
[1747218787698,2.67188521,103910.0,103900.0,1.12394869]
[1747218787900,2.79053654,103910.0,103900.0,1.18004869]
[1747218788084,2.79053654,103910.0,103900.0,1.06874869]
[1747218788292,2.79053654,103910.0,103900.0,1.01264869]
[1747218788596,2.81512158,103910.0,103900.0,1.01264869]
[1747218788796,3.41140158,103910.0,103900.0,0.07684491]
[1747218789100,3.41140158,103910.0,103900.0,1e-08]
[1747218791691,0.1925202,103880.0,103870.0,0.05982539]
[1747218791890,1.44957153,103880.0,103870.0,0.00192539]
[1747218792088,1.78057153,103880.0,103870.0,0.00192539]
[1747218792287,1.87683953,103880.0,103870.0,0.00192539]
[1747218792994,1.87683953,103880.0,103870.0,0.00592539]
[1747218793400,1.87683953,103880.0,103870.0,0.00992539]
[1747218793401,1.6619202,103880.0,103870.0,0.00992539]
[1747218793593,0.8369202,103880.0,103870.0,0.18207672]
[1747218793796,0.4127202,103880.0,103870.0,0.59627672]
[1747218794004,0.8703602,103880.0,103870.0,0.59627672]
[1747218794802,0.8703602,103880.0,103870.0,0.23547672]
[1747218796407,0.8703602,103880.0,103870.0,0.29327672]
[1747218797106,1.08652805,103880.0,103870.0,0.29327672]
[1747218797799,1.87597938,103880.0,103870.0,0.17462539]
[1747218798004,1.92977938,103880.0,103870.0,0.17462539]
[1747218798302,1.86432805,103880.0,103870.0,0.17462539]
[1747218799008,1.50112805,103880.0,103870.0,0.17462539]
[1747218799406,1.04348805,103880.0,103870.0,0.17462539]
[1747218799597,1.14032805,103880.0,103870.0,0.17462539]
[1747218799799,1.50112805,103880.0,103870.0,0.17462539]
[1747218800505,1.50112805,103880.0,103870.0,0.29327672]
[1747218800704,0.99530876,103880.0,103870.0,0.29327672]
[1747218800914,0.57630876,103880.0,103870.0,0.29327672]
[1747218801215,1.03370876,103880.0,103870.0,0.29327672]
[1747218801706,0.80498876,103880.0,103870.0,0.38954627]
[1747218801895,1.03366876,103880.0,103870.0,0.38954627]
[1747218802093,1.09156876,103880.0,103870.0,0.38954627]
[1747218803616,0.63420876,103880.0,103870.0,0.27089494]
[1747218803909,1.09156876,103880.0,103870.0,0.38954627]
[1747218804720,1.02256585,103880.0,103870.0,0.27089494]
[1747218805005,0.96466585,103880.0,103870.0,0.94288497]
[1747218805807,0.96466585,103880.0,103870.0,0.75034627]
[1747218806805,0.50730585,103880.0,103870.0,0.94288497]
[1747218807010,0.31478565,103880.0,103870.0,1.04288497]
[1747218807311,0.34530585,103880.0,103870.0,1.04288497]
[1747218807502,0.19814091,103880.0,103870.0,0.94288497]
[1747218808609,0.19814091,103880.0,103870.0,1.07288497]
[1747218810312,0.19814091,103880.0,103870.0,1.08260457]
[1747218810612,0.19814091,103880.0,103870.0,0.94288497]
[1747218810906,0.19814091,103880.0,103870.0,0.75034627]
[1747218811112,0.36014091,103880.0,103870.0,0.75034627]
[1747218811300,0.37014091,103880.0,103870.0,0.75034627]
[1747218811503,0.37014091,103880.0,103870.0,0.94288497]
[1747218811910,0.42854091,103880.0,103870.0,0.94288497]
[1747218812209,0.42854091,103880.0,103870.0,0.75034627]
[1747218812905,0.65714091,103880.0,103870.0,0.63169494]
[1747218813111,0.71924091,103880.0,103870.0,0.63169494]
[1747218813702,0.71924091,103880.0,103870.0,0.27089494]
[1747218813898,0.77864091,103880.0,103870.0,0.27089494]
[1747218814103,1.25809224,103880.0,103870.0,0.17462539]
[1747218814401,1.25809224,103880.0,103870.0,0.12122539]
[1747218814804,1.13944091,103880.0,103870.0,0.12122539]
[1747218818009,1.23741841,103880.0,103870.0,0.12122539]
[1747218818312,1.23741841,103880.0,103870.0,0.06342539]
[1747218818614,1.23741841,103880.0,103870.0,0.00992539]
[1747218819215,1.23741841,103880.0,103870.0,0.13122539]
[1747218819406,1.23741841,103880.0,103870.0,0.07262539]
[1747218820108,1.23741841,103880.0,103870.0,0.19132539]
[1747218820614,1.22741841,103880.0,103870.0,0.19132539]
[1747218820817,1.22741841,103880.0,103870.0,0.07262539]
[1747218821016,1.35741841,103880.0,103870.0,0.00992539]
[1747218821815,0.67101278,103880.0,103870.0,0.48937672]
[1747218822008,0.57717258,103880.0,103870.0,0.95668497]
[1747218822208,0.34849258,103880.0,103870.0,0.95668497]
[1747218823409,0.34849258,103880.0,103870.0,0.83803364]
[1747218823610,0.34849258,103880.0,103870.0,0.95668497]
[1747218824619,0.40659258,103880.0,103870.0,0.95668497]
[1747218825619,0.28412071,103880.0,103870.0,0.95668497]
[1747218832222,0.50464363,103880.0,103870.0,0.95668497]
[1747218834125,0.50464363,103880.0,103870.0,0.83803364]
[1747218834515,0.50464363,103880.0,103870.0,0.95668497]
[1747218836829,0.38217176,103880.0,103870.0,0.95668497]
[1747218839633,0.57469196,103880.0,103870.0,0.64549494]
[1747218840127,0.63539196,103880.0,103870.0,0.64549494]
[1747218840627,0.44287176,103880.0,103870.0,0.95668497]
[1747218840829,0.57469196,103880.0,103870.0,0.95668497]
[1747218841027,0.26567176,103880.0,103870.0,1.05668497]
[1747218841332,0.58066383,103880.0,103870.0,0.95668497]
[1747218841532,0.64146383,103880.0,103870.0,0.95668497]
[1747218841926,0.58066383,103880.0,103870.0,0.95668497]
[1747218842231,0.41866383,103880.0,103870.0,0.95668497]
[1747218842624,0.41866383,103880.0,103870.0,1.06668497]
[1747218843233,0.00144443,103910.0,103900.0,0.1924831]
[1747218843420,0.27855639,103920.0,103910.0,0.1924646]
[1747218843726,0.51913579,103920.0,103910.0,0.60195133]
[1747218844035,0.51913579,103920.0,103910.0,0.69822088]
[1747218844225,0.68113579,103920.0,103910.0,0.89068548]
[1747218844533,0.68113579,103920.0,103910.0,0.69822088]
[1747218844723,0.74003579,103920.0,103910.0,0.69822088]
[1747218845130,0.74203579,103920.0,103910.0,0.69822088]
[1747218846231,0.68334043,103920.0,103910.0,0.89068548]
[1747218847228,0.68334043,103920.0,103910.0,0.71248915]
[1747218847630,0.68334043,103920.0,103910.0,0.69822088]
[1747218848233,0.68334043,103920.0,103910.0,0.89068548]
[1747218848737,0.68334043,103920.0,103910.0,0.77203415]
[1747218848935,0.68334043,103920.0,103910.0,0.89068548]
[1747218849842,0.5718948,103920.0,103910.0,0.89068548]
[1747218850841,0.5718948,103920.0,103910.0,0.57956955]
[1747218851340,0.5718948,103920.0,103910.0,0.69822088]
[1747218851642,0.5718948,103920.0,103910.0,0.57956955]
[1747218852246,0.5718948,103920.0,103910.0,0.59376775]
[1747218853647,0.5718948,103920.0,103910.0,0.23296775]
[1747218854040,0.5718948,103920.0,103910.0,0.59376775]
[1747218856050,0.5718948,103920.0,103910.0,0.51986955]
[1747218858654,0.5718948,103920.0,103910.0,0.71233415]
[1747218858860,0.5718948,103920.0,103910.0,0.69892088]
[1747218859354,0.2832,103920.0,103910.0,0.89138548]
[1747218859551,0.28882071,103920.0,103910.0,0.89138548]
[1747218859750,0.23192071,103920.0,103910.0,0.89138548]
[1747218860664,0.42436671,103920.0,103910.0,0.89138548]
[1747218861355,0.48686671,103920.0,103910.0,0.89138548]
[1747218861558,0.48686671,103920.0,103910.0,0.95008548]
[1747218861858,0.48486671,103920.0,103910.0,0.95008548]
[1747218862060,0.48586671,103920.0,103910.0,0.95008548]
[1747218862562,0.48486671,103920.0,103910.0,0.95008548]
[1747218862964,0.22992071,103920.0,103910.0,0.95008548]
[1747218863155,0.17162071,103920.0,103910.0,0.95008548]
[1747218864061,0.17062071,103920.0,103910.0,0.95008548]
[1747218864363,0.00862071,103920.0,103910.0,0.95108548]
[1747218864863,0.20106671,103920.0,103910.0,0.95108548]
[1747218865058,0.20006671,103920.0,103910.0,0.64096955]
[1747218865258,0.25876671,103920.0,103910.0,0.95208548]
[1747218865458,0.37976671,103920.0,103910.0,0.95208548]
[1747218865763,0.31946671,103920.0,103910.0,0.95108548]
[1747218866258,0.48146671,103920.0,103910.0,0.95008548]
[1747218866459,0.48246671,103920.0,103910.0,0.95008548]
[1747218867664,0.48246671,103920.0,103910.0,0.57856955]
[1747218867855,0.54406671,103920.0,103910.0,0.21776955]
[1747218868361,0.1924646,103910.0,103900.0,0.79189756]
[1747218868664,0.3687646,103910.0,103900.0,0.93625075]
[1747218868963,0.3687646,103910.0,103900.0,1.05490208]
[1747218868964,0.3071646,103910.0,103900.0,1.05490208]
[1747218869262,0.4691646,103910.0,103900.0,1.05490208]
[1747218869467,0.4691646,103910.0,103900.0,1.05590208]
[1747218869656,0.4691646,103910.0,103900.0,1.05690208]
[1747218875072,0.4691646,103910.0,103900.0,0.84200995]
[1747218875266,0.4691646,103910.0,103900.0,0.96066128]
[1747218875770,0.47478531,103910.0,103900.0,0.84200995]
[1747218875971,0.47478531,103910.0,103900.0,0.96066128]
[1747218876267,0.47578531,103910.0,103900.0,0.95966128]
[1747218876466,0.47578531,103910.0,103900.0,0.64852785]
[1747218876665,0.65013664,103910.0,103900.0,0.28772785]
[1747218876969,0.53148531,103910.0,103900.0,0.84201095]
[1747218877266,0.65113664,103910.0,103900.0,0.001]
[1747218877471,1.01193664,103910.0,103900.0,0.001]
[1747218877871,1.29193664,103910.0,103900.0,0.001]
[1747218878167,1.29093664,103910.0,103900.0,0.002]
[1747218878360,1.09093664,103910.0,103900.0,0.002]
[1747218878672,1.33093664,103910.0,103900.0,0.002]
[1747218878868,1.42717664,103910.0,103900.0,0.002]
[1747218879072,1.67717664,103910.0,103900.0,0.002]
[1747218879378,1.42717664,103910.0,103900.0,0.002]
[1747218880968,1.63811103,103910.0,103900.0,0.002]
[1747218883068,0.1925202,103880.0,103870.0,0.53552539]
[1747218883372,0.31117153,103880.0,103870.0,0.63176714]
[1747218883569,0.49007153,103880.0,103870.0,0.63176714]
[1747218883974,0.3714202,103880.0,103870.0,0.63176714]
[1747218884166,0.5334202,103880.0,103870.0,0.63176714]
[1747218884474,0.5334202,103880.0,103870.0,0.57966714]
[1747218884675,0.5334202,103880.0,103870.0,0.58566714]
[1747218885165,0.65572586,103880.0,103870.0,0.64416714]
[1747218887271,0.59752586,103880.0,103870.0,0.83670584]
[1747218887475,0.76366586,103880.0,103870.0,0.95535717]
[1747218888180,0.82436586,103880.0,103870.0,0.95535717]
[1747218889382,0.82436586,103880.0,103870.0,0.83670584]
[1747218889971,0.7020602,103880.0,103870.0,0.83670584]
[1747218891079,0.70768091,103880.0,103870.0,0.83670584]
[1747218896586,0.70768091,103880.0,103870.0,0.64416714]
[1747218900381,0.82633224,103880.0,103870.0,0.58566714]
[1747218900884,0.82633224,103880.0,103870.0,0.11016714]
[1747218901083,1.18713224,103880.0,103870.0,0.01392539]
[1747218901290,0.82633224,103880.0,103870.0,0.01392539]
[1747218901881,0.82633224,103880.0,103870.0,0.06972539]
[1747218902686,0.83633224,103880.0,103870.0,0.06972539]
[1747218902989,0.82633224,103880.0,103870.0,0.06972539]
[1747218903485,0.86633224,103880.0,103870.0,0.06972539]
[1747218903670,0.86633224,103880.0,103870.0,0.01392539]
[1747218904280,0.86633224,103880.0,103870.0,0.07532539]
[1747218904484,0.86633224,103880.0,103870.0,0.01392539]
[1747218908492,1.03335154,103880.0,103870.0,0.43572539]
[1747218908691,0.57783154,103880.0,103870.0,0.49342539]
[1747218908883,1.03335154,103880.0,103870.0,0.49342539]
[1747218909580,1.15200287,103880.0,103870.0,0.49342539]
[1747218910080,1.15200287,103880.0,103870.0,0.01392539]
[1747218910399,1.40200287,103880.0,103870.0,0.01392539]
[1747218910887,1.76280287,103880.0,103870.0,0.01392539]
[1747218911691,1.82260287,103880.0,103870.0,0.01392539]
[1747218912285,1.72461224,103880.0,103870.0,0.01392539]
[1747218912487,1.8469179,103880.0,103870.0,0.01392539]
[1747218913494,1.9431859,103880.0,103870.0,0.01392539]
[1747218914698,1.9431859,103880.0,103850.0,0.43054504]
[1747218914699,0.1925572,103860.0,103850.0,0.43054504]
[1747218914993,0.6480372,103860.0,103850.0,0.52681459]
[1747218915180,1.10288853,103860.0,103850.0,0.52681459]
[1747218915981,1.10388853,103860.0,103850.0,0.61141459]
[1747218916586,1.10388853,103860.0,103850.0,0.66901459]
[1747218916793,1.10588853,103860.0,103850.0,0.68701459]
[1747218918786,1.22453986,103860.0,103850.0,0.32621459]
[1747218918992,1.60533986,103860.0,103850.0,0.05204504]
[1747218919194,1.48668853,103860.0,103850.0,0.05204504]
[1747218920083,1.48468853,103860.0,103850.0,0.03804504]
[1747218920284,1.48368853,103860.0,103850.0,0.01904504]
[1747218920490,1.60796057,103860.0,103850.0,0.01904504]
[1747218920691,1.60796057,103860.0,103850.0,0.07484504]
[1747218921295,1.48930924,103860.0,103850.0,0.01904504]
[1747218921791,1.60796057,103860.0,103850.0,0.01904504]
[1747218922597,1.48930924,103860.0,103850.0,0.07614504]
[1747218922784,1.48930924,103860.0,103850.0,0.19044504]
[1747218923584,1.12850924,103860.0,103850.0,0.19044504]
[1747218923886,1.48930924,103860.0,103850.0,0.19044504]
[1747218924093,1.12850924,103860.0,103850.0,0.19044504]
[1747218924393,1.48930924,103860.0,103850.0,0.19044504]
[1747218925499,1.12850924,103860.0,103850.0,0.19044504]
[1747218925699,1.48930924,103860.0,103850.0,0.19044504]
[1747218926297,1.12850924,103860.0,103850.0,0.19044504]
[1747218926603,1.03382924,103860.0,103850.0,0.19044504]
[1747218926903,1.48902924,103860.0,103850.0,0.19044504]
[1747218931806,1.03382924,103860.0,103850.0,0.19044504]
[1747218932111,0.58773791,103860.0,103850.0,0.90618446]
[1747218932295,0.58773791,103860.0,103850.0,0.64753313]
[1747218932500,0.36017791,103860.0,103850.0,0.64753313]
[1747218933605,0.36017791,103860.0,103850.0,0.84010893]
[1747218933809,0.58773791,103860.0,103850.0,0.95876026]
[1747218934108,0.36017791,103860.0,103850.0,0.95876026]
[1747218934312,0.58773791,103860.0,103850.0,1.08876026]
[1747218934611,0.16762071,103860.0,103850.0,1.08876026]
[1747218935010,0.16762071,103860.0,103850.0,1.18504826]
[1747218935214,0.19817791,103860.0,103850.0,1.18504826]
[1747218935514,0.00562071,103860.0,103850.0,1.43504826]
[1747218935717,0.31504044,103870.0,103860.0,0.1925572]
[1747218935909,0.31504044,103870.0,103860.0,0.94800853]
[1747218936312,0.31504044,103870.0,103860.0,1.04428735]
[1747218937018,0.31504044,103870.0,103860.0,1.04728735]
[1747218937318,0.31504044,103870.0,103860.0,1.05028735]
[1747218938118,0.31504044,103870.0,103860.0,1.05028735]
[1747218938415,0.31504044,103870.0,103860.0,0.92028735]
[1747218938918,0.31504044,103870.0,103860.0,0.80163602]
[1747218939719,0.1925539,103870.0,103860.0,0.92028735]
[1747218940217,0.1925539,103870.0,103860.0,0.93378735]
[1747218941219,0.1925539,103870.0,103860.0,1.05378735]
[1747218943338,0.1925539,103870.0,103860.0,0.93378735]
[1747218944220,0.1925539,103870.0,103860.0,0.81513602]
[1747218944417,0.2650539,103870.0,103860.0,0.81513602]
[1747218945133,0.4270539,103870.0,103860.0,0.81513602]
[1747218947834,0.4270539,103870.0,103860.0,0.93378735]
[1747218949227,0.4270539,103870.0,103860.0,0.92028735]
[1747218950033,0.43267461,103870.0,103860.0,0.92028735]
[1747218950332,0.43267461,103870.0,103860.0,1.03893868]
[1747218950534,0.002,103880.0,103870.0,0.1925387]
[1747218950734,0.09936648,103900.0,103890.0,0.1925016]
[1747218951037,0.29184958,103900.0,103890.0,1.18625293]
[1747218951236,0.29184958,103900.0,103890.0,1.50003175]
[1747218951624,0.19392759,103900.0,103890.0,1.61868308]
[1747218951834,0.31641413,103900.0,103890.0,1.61868308]
[1747218952236,0.31641413,103900.0,103890.0,1.50003175]
[1747218952639,0.32041413,103900.0,103890.0,1.50003175]
[1747218953033,0.31741413,103900.0,103890.0,1.50003175]
[1747218953236,0.69941413,103900.0,103890.0,1.24138042]
[1747218953439,0.47241413,103900.0,103890.0,1.24138042]
[1747218954238,0.63441413,103900.0,103890.0,1.24138042]
[1747218954539,0.63441413,103900.0,103890.0,1.36003175]
[1747218954739,0.63441413,103900.0,103890.0,1.25579586]
[1747218955241,0.63441413,103900.0,103890.0,1.24229586]
[1747218955433,0.51192759,103900.0,103890.0,1.24229586]
[1747218959044,0.51192759,103900.0,103890.0,1.22788042]
[1747218961847,0.51681406,103900.0,103890.0,1.22788042]
[1747218964351,0.63546539,103900.0,103890.0,1.24220115]
[1747218965050,0.63546539,103900.0,103890.0,0.88140115]
[1747218965347,0.52243477,103900.0,103890.0,0.88140115]
[1747218965548,0.52243477,103900.0,103890.0,0.86708042]
[1747218967149,0.52243477,103900.0,103890.0,0.87708042]
[1747218967350,0.17695167,103900.0,103890.0,1.11573175]
[1747218967547,0.36943477,103900.0,103890.0,1.11573175]
[1747218967748,0.17695167,103900.0,103890.0,1.57021175]
[1747218967945,0.36943477,103900.0,103890.0,1.57021175]
[1747218968145,0.20743477,103900.0,103890.0,1.57021175]
[1747218968737,0.20743477,103900.0,103890.0,1.46571359]
[1747218968942,0.20743477,103900.0,103890.0,1.58436492]
[1747218969850,0.20743477,103900.0,103890.0,3.08436492]
[1747218970151,0.20743477,103900.0,103890.0,3.09786492]
[1747218976354,0.28273477,103900.0,103890.0,3.09786492]
[1747218977555,0.28273477,103900.0,103890.0,2.84921359]
[1747218978258,0.35610968,103900.0,103890.0,2.84921359]
[1747218979051,0.35610968,103900.0,103890.0,2.96921359]
[1747218979258,0.35610968,103900.0,103890.0,2.84921359]
[1747218982362,0.45379594,103900.0,103890.0,2.84921359]
[1747218983653,0.45379594,103900.0,103890.0,2.96786492]
[1747218984865,0.45379594,103900.0,103890.0,0.89473359]
[1747218985061,0.68599594,103900.0,103890.0,1.34901359]
[1747218985260,0.68599594,103900.0,103890.0,0.88123359]
[1747218985464,0.76249594,103900.0,103890.0,0.88123359]
[1747218986161,0.59143477,103900.0,103890.0,0.88123359]
[1747218988166,0.59143477,103900.0,103890.0,1.24203359]
[1747218988863,0.7100861,103900.0,103890.0,0.90393199]
[1747218989052,0.7100861,103900.0,103890.0,0.09627882]
[1747218989359,0.7100861,103900.0,103890.0,0.64958042]
[1747218990065,0.71972325,103900.0,103890.0,0.64958042]
[1747218993264,0.7100861,103900.0,103890.0,0.64958042]
[1747218994170,0.7100861,103900.0,103890.0,0.45707882]
[1747218994664,0.71995732,103900.0,103890.0,0.45707882]
[1747218995057,0.71995732,103900.0,103890.0,0.64958042]
[1747218995565,0.89101849,103900.0,103890.0,0.64958042]
[1747218997166,0.889574,103900.0,103890.0,0.64958042]
[1747218997666,0.889574,103900.0,103890.0,0.45707882]
[1747218999075,0.889574,103900.0,103890.0,0.64958042]
[1747218999264,0.8488002,103900.0,103890.0,0.64958042]
[1747218999568,0.8488002,103900.0,103890.0,0.09627882]
[1747219000668,0.8488002,103900.0,103890.0,0.45707882]
[1747219000968,0.92667773,103900.0,103890.0,0.45707882]
[1747219001669,0.92667773,103900.0,103880.0,0.3608]
[1747219001670,0.1925016,103890.0,103880.0,0.3608]
[1747219001866,0.34307913,103890.0,103880.0,0.3608]
[1747219002055,0.1925202,103880.0,103870.0,0.58741347]
[1747219002260,0.41799773,103880.0,103870.0,0.77995217]
[1747219003060,0.41799773,103880.0,103870.0,0.87621245]
[1747219003263,0.57999773,103880.0,103870.0,0.87621245]
[1747219003565,0.57999773,103880.0,103870.0,0.87821245]
[1747219003772,0.57999773,103880.0,103870.0,0.68567375]
[1747219003963,0.57999773,103880.0,103870.0,0.61327375]
[1747219004469,0.57999773,103880.0,103870.0,0.47047375]
[1747219004672,0.57999773,103880.0,103870.0,0.66401245]
[1747219004860,0.5021202,103880.0,103870.0,0.73441245]
[1747219005062,0.5021202,103880.0,103870.0,0.80841245]
[1747219005261,0.7289602,103880.0,103870.0,0.80841245]
[1747219005462,0.162,103880.0,103870.0,0.93710938]
[1747219005755,0.3545202,103880.0,103870.0,1.03510938]
[1747219006185,0.1925202,103880.0,103870.0,1.03510938]
[1747219007055,0.1925202,103880.0,103870.0,0.92510938]
[1747219009170,0.1925202,103880.0,103870.0,0.93860938]
[1747219009365,0.1925202,103880.0,103870.0,0.93760938]
[1747219010255,0.1925202,103880.0,103870.0,1.02760938]
[1747219010869,0.19814091,103880.0,103870.0,1.02760938]
[1747219012369,0.19814091,103880.0,103870.0,0.90891245]
[1747219014774,0.19814091,103880.0,103870.0,1.02760938]
[1747219017084,0.19814091,103880.0,103870.0,1.09890938]
[1747219021073,0.36014091,103880.0,103870.0,1.09890938]
[1747219021476,0.43351582,103880.0,103870.0,1.09890938]
[1747219021975,0.50741582,103880.0,103870.0,1.09890938]
[1747219026276,0.53172717,103880.0,103870.0,1.09890938]
[1747219027386,0.60192717,103880.0,103870.0,1.05809715]
[1747219027885,0.60192717,103880.0,103870.0,0.96809715]
[1747219029988,0.60192717,103880.0,103870.0,0.89021245]
[1747219030290,0.60192717,103880.0,103870.0,0.96809715]
[1747219030793,0.60192717,103880.0,103870.0,1.32889715]
[1747219031486,0.60192717,103880.0,103870.0,1.25101245]
[1747219031688,0.60192717,103880.0,103870.0,1.32889715]
[1747219031987,0.67632717,103880.0,103870.0,1.25101245]
[1747219034881,0.74091838,103880.0,103870.0,1.25101245]
[1747219037288,0.74091838,103880.0,103870.0,1.10571245]
[1747219038193,0.74091838,103880.0,103870.0,0.74491245]
[1747219038694,0.65230111,103880.0,103870.0,0.74491245]
[1747219039290,0.65230111,103880.0,103870.0,0.88991245]
[1747219040595,0.65230111,103880.0,103870.0,0.81491245]
[1747219041093,0.65230111,103880.0,103870.0,0.88491245]
[1747219042295,0.65230111,103880.0,103870.0,0.87141245]
[1747219044792,0.65230111,103880.0,103870.0,0.94929715]
[1747219047889,0.38538091,103880.0,103870.0,0.96929715]
[1747219048090,0.41590111,103880.0,103870.0,0.96929715]
[1747219048298,0.41590111,103880.0,103870.0,0.98279715]
[1747219049098,0.65100111,103880.0,103870.0,0.98279715]
[1747219049795,0.65100111,103880.0,103870.0,0.90491245]
[1747219050295,0.65100111,103880.0,103870.0,0.98279715]
[1747219050793,0.65100111,103880.0,103870.0,1.26571245]
[1747219050991,0.65100111,103880.0,103870.0,1.34359715]
[1747219051797,0.65100111,103880.0,103870.0,1.32359715]
[1747219051996,0.57790111,103880.0,103870.0,1.32359715]
[1747219052198,0.57790111,103880.0,103870.0,1.31410907]
[1747219052496,0.65370111,103880.0,103870.0,1.31410907]
[1747219053393,0.65370111,103880.0,103870.0,1.23622437]
[1747219053789,0.65370111,103880.0,103870.0,1.31410907]
[1747219054198,0.65370111,103880.0,103870.0,1.30060907]
[1747219054395,0.65370111,103880.0,103870.0,1.22272437]
[1747219054599,0.73158581,103880.0,103870.0,1.22272437]
[1747219054903,0.73158581,103880.0,103870.0,1.08272437]
[1747219055292,0.65370111,103880.0,103870.0,1.08272437]
[1747219055492,0.65370111,103880.0,103870.0,1.15292437]
[1747219055703,0.65370111,103880.0,103870.0,1.08272437]
[1747219056595,0.75191471,103880.0,103870.0,1.23542437]
[1747219057807,0.75191471,103880.0,103870.0,1.15892437]
[1747219058213,0.75191471,103880.0,103870.0,1.08272437]
[1747219058713,0.75191471,103880.0,103870.0,1.16060907]
[1747219058897,0.75191471,103880.0,103870.0,1.30860907]
[1747219059206,0.67611471,103880.0,103870.0,1.30860907]
[1747219061009,0.75221471,103880.0,103870.0,1.23072437]
[1747219066408,0.75221471,103880.0,103870.0,1.15892437]
[1747219067513,0.75221471,103880.0,103870.0,1.23372437]
[1747219069216,0.83009941,103880.0,103870.0,1.01232437]
[1747219069406,0.83009941,103880.0,103870.0,0.81978567]
[1747219069813,0.83009941,103880.0,103870.0,1.01232437]
[1747219070317,1.53429681,103880.0,103870.0,0.09818567]
[1747219070521,2.22509681,103880.0,103870.0,0.00192539]
[1747219070908,2.14721211,103880.0,103870.0,0.00192539]
[1747219071312,1.82721211,103880.0,103870.0,0.00192539]
[1747219073318,2.22509681,103880.0,103870.0,0.00192539]
[1747219073921,2.22509681,103880.0,103850.0,0.15664172]
[1747219073922,0.1925572,103860.0,103850.0,0.15664172]
[1747219074123,1.1612866,103860.0,103850.0,0.15664172]
[1747219074316,0.9418019,103860.0,103850.0,0.37184504]
[1747219074508,1.0196866,103860.0,103850.0,0.44224504]
[1747219074908,0.9418019,103860.0,103850.0,0.44224504]
[1747219075118,1.1038019,103860.0,103850.0,0.44524504]
[1747219076027,1.1038019,103860.0,103850.0,0.44924504]
[1747219076724,1.1038019,103860.0,103850.0,0.08844504]
[1747219077628,1.26608992,103860.0,103850.0,0.08844504]
[1747219078215,1.59890262,103860.0,103850.0,4e-08]
[1747219078411,0.1925943,103840.0,103830.0,0.00192613]
[1747219078717,0.83980087,103840.0,103830.0,0.00192613]
[1747219078918,0.97981617,103840.0,103830.0,0.00192613]
[1747219079234,1.14181617,103840.0,103830.0,0.00192613]
[1747219079424,1.102059,103840.0,103830.0,0.00192613]
[1747219079724,1.0241743,103840.0,103830.0,0.09821422]
[1747219079910,0.5724943,103840.0,103830.0,0.31001422]
[1747219080112,1.103059,103840.0,103830.0,0.31001422]
[1747219080912,0.5734943,103840.0,103830.0,0.50262712]
[1747219081113,0.9503743,103840.0,103830.0,0.94131182]
[1747219081325,0.4293943,103840.0,103830.0,0.94131182]
[1747219081517,0.3555943,103840.0,103830.0,0.94131182]
[1747219082014,0.3555943,103840.0,103830.0,0.95131182]
[1747219082313,0.1935943,103840.0,103830.0,0.95131182]
[1747219082916,0.001,103840.0,103830.0,0.95131182]
[1747219083119,0.35588232,103840.0,103830.0,0.95131182]
[1747219083325,0.35588232,103840.0,103830.0,0.99217975]
[1747219083717,0.35588232,103840.0,103830.0,0.98217975]
[1747219084916,0.42848232,103840.0,103830.0,0.98217975]
[1747219085123,0.70923495,103840.0,103830.0,0.67081422]
[1747219085314,0.85093495,103840.0,103830.0,0.67081422]
[1747219085518,0.85093495,103840.0,103830.0,0.31001422]
[1747219085820,0.85093495,103840.0,103830.0,0.67081422]
[1747219086025,0.85655566,103840.0,103830.0,0.86342712]
[1747219086223,0.85655566,103840.0,103830.0,0.67081422]
[1747219086417,0.73780303,103840.0,103830.0,0.67081422]
[1747219087624,0.73780303,103840.0,103830.0,0.86342712]
[1747219087823,0.57551501,103840.0,103830.0,0.67081422]
[1747219088218,0.57551501,103840.0,103830.0,0.86342712]
[1747219090025,0.50341501,103840.0,103830.0,0.86342712]
[1747219090825,0.72929501,103840.0,103830.0,0.86342712]
[1747219095623,0.72929501,103840.0,103830.0,0.67081422]
[1747219095624,0.84804764,103840.0,103830.0,0.67081422]
[1747219095824,0.99834764,103840.0,103830.0,0.16941422]
[1747219096226,1.35914764,103840.0,103830.0,0.16941422]
[1747219096430,0.99834764,103840.0,103830.0,0.16941422]
[1747219096735,0.99834764,103840.0,103830.0,0.53021422]
[1747219097531,0.99834764,103840.0,103830.0,0.60431422]
[1747219098736,0.99834764,103840.0,103830.0,0.67391422]
[1747219099228,0.91834764,103840.0,103830.0,0.67391422]
[1747219099422,0.79959501,103840.0,103830.0,0.67391422]
[1747219099735,0.91834764,103840.0,103830.0,0.67391422]
[1747219101034,0.79959501,103840.0,103830.0,0.86652712]
[1747219101344,0.50341501,103840.0,103830.0,0.86652712]
[1747219101644,0.95497501,103840.0,103830.0,0.86652712]
[1747219103035,0.50341501,103840.0,103830.0,0.86652712]
[1747219103239,0.72929501,103840.0,103830.0,0.86652712]
[1747219103927,0.65969501,103840.0,103830.0,0.98527975]
[1747219104132,0.27181501,103840.0,103830.0,0.98527975]
[1747219104338,0.49769501,103840.0,103830.0,0.98527975]
[1747219104938,0.49769501,103840.0,103830.0,0.86652712]
[1747219105343,0.56569501,103840.0,103830.0,0.86652712]
[1747219107646,0.63903421,103840.0,103830.0,0.86652712]
[1747219112148,0.57103421,103840.0,103830.0,0.98527975]
[1747219112938,0.57103421,103840.0,103830.0,0.86652712]
[1747219116350,0.65998887,103840.0,103830.0,0.86652712]
[1747219119451,0.58738887,103840.0,103830.0,0.86652712]
[1747219119655,0.16891457,103840.0,103830.0,1.24753238]
[1747219119950,0.16891457,103840.0,103830.0,1.56944038]
[1747219120141,0.16891457,103840.0,103830.0,3.23144038]
[1747219120654,0.14655813,103850.0,103840.0,0.1925943]
[1747219120857,0.14655813,103850.0,103840.0,1.16782693]
[1747219121048,0.14655813,103850.0,103840.0,1.26412293]
[1747219121352,0.33913393,103850.0,103840.0,1.03865357]
[1747219121550,0.33913393,103850.0,103840.0,1.14538094]
[1747219121749,0.48223393,103850.0,103840.0,0.91990094]
[1747219121951,0.48223393,103850.0,103840.0,0.78990094]
[1747219122254,0.54933393,103850.0,103840.0,0.90865357]
[1747219122552,0.54933393,103850.0,103840.0,0.78990094]
[1747219123248,0.55233393,103850.0,103840.0,0.80340094]